Cogmind - Beta 14 @@@ ROGUE MODE // 2024.09.01 @ 17:00:35 // Winter2022/Polymind Player: f3-rnm Result: Self-destructed Performance ------------- Evolutions (2) 1000 Regions Visited (8) 1600 Robots Destroyed (22) 110 Value Destroyed (641) 641 Prototype IDs (3) 60 Alien Tech Used (0) 0 Bonus (4100) 4100 TOTAL SCORE: 7241 Bonus ------- Polymind Skill 3660 Follower Combat Kills 441 Friendly Fire -1 Cogmind --------- Core Integrity 35/550 Matter 0/0 Energy 90/90 System Corruption 0% Temperature Warm (152) Movement Walking (100) Location -8/Scraptown Parts ------- > --- POWER (1) -------- Light Deuterium Engine > --- PROPULSION (2) --- Overtuned Titanium Leg Overtuned Titanium Leg > --- UTILITY (4) ------ Scrap Suit Makeshift Microdissipator Network > --- WEAPON (1) ------- Overtuned Pulse Rifle > --- INVENTORY (1) ---- (None) Peak State ------------ > --- POWER ------------ Heavy Deuterium Engine > --- PROPULSION ------- Combat Antigrav System > --- UTILITY ---------- Advanced Launcher Guidance Computer Improved Target Analyzer Experimental Core Analyzer Improved Armor Integrity Analyzer EX Chip 1 EX Chip 1 EX Chip 1 EX Chip 1 EX Chip 1 EX Chip 1 EX Chip 1 EX Chip 1 EX Chip 1 EX Chip 1 EX Chip 2 EX Chip 2 EX Chip 2 EX Chip 2 EX Chip 2 EX Chip 2 EX Chip 2 EX Chip 2 > --- WEAPON ----------- AWS/EX-DEC > --- INVENTORY -------- Deploy-a-Sentry [Rating: 99] Favorites ----------- Power Heavy Deuterium Engine Engine Heavy Deuterium Engine Propulsion Combat Antigrav System Leg Overtuned Titanium Leg Hover Unit Combat Antigrav System Utility EX Chip 1 Device Scrap Suit Processor Advanced Launcher Guidance Computer Hackware EX Chip 1 Weapon AWS/EX-DEC Energy Gun AWS/EX-DEC Build | -11 -10 -10 -10 -9 -8 -8 -8 -8 ------- Run | Yrd Mat Min Exi Min Mat Sto Rec Scr Slots Evolved . | . . . . . . . . . Power . | . . . . . . . . . Propulsion . | . . . . . . . . . Utility . | . . . . . . . . . Weapon . | . . . . . . . . . Parts Attached . | . . . . . . . . . Power . | . . . . . . . . . Engine . | . . . . . . . . . Core . | . . . . . . . . . Reactor . | . . . . . . . . . Propulsion . | . . . . . . . . . Treads . | . . . . . . . . . Leg . | . . . . . . . . . Wheel . | . . . . . . . . . Hover . | . . . . . . . . . Flight . | . . . . . . . . . Utility . | . . . . . . . . . Device . | . . . . . . . . . Storage . | . . . . . . . . . Processor . | . . . . . . . . . Hackware . | . . . . . . . . . Protection . | . . . . . . . . . Artifact . | . . . . . . . . . Weapon . | . . . . . . . . . Energy Gun . | . . . . . . . . . Energy Cannon . | . . . . . . . . . Ballistic Gun . | . . . . . . . . . Ballistic Cannon . | . . . . . . . . . Launcher . | . . . . . . . . . Special Weapon . | . . . . . . . . . Impact Weapon . | . . . . . . . . . Slashing Weapon . | . . . . . . . . . Piercing Weapon . | . . . . . . . . . Special Melee Weapon . | . . . . . . . . . Unidentified Prototypes . | . . . . . . . . . Parts Lost 12 | . . . . . . 10 1 1 Power 1 | . . . . . . 1 . . Propulsion . | . . . . . . . . . Utility 10 | . . . . . . 8 1 1 Weapon 1 | . . . . . . 1 . . Highest Loss Streak 8 | . . . . . . 8 1 1 To Critical Strikes . | . . . . . . . . . Average Slot Usage (%) 59 | . . . 48 96 96 70 56 48 Engine 1 | . . . 1 3 3 2 . . Hover 2 | . . . 1 3 3 3 3 2 Processor 12 | . . . 7 15 15 15 15 12 Hackware 40 | . . . 34 69 69 47 37 27 Energy Gun 1 | . . . 1 3 3 . . . Peak Build Rating 99 | . . . 99 99 99 99 59 57 Average Rating 60 | . . . 51 99 99 70 58 49 On Entrance 45 | . . . . 99 99 99 59 57 Naked Turns 354 | . 16 260 47 . . . . 31 Heaviest Build 21 | . . . 21 21 21 21 . 13 Greatest Support 38 | 3 3 3 21 21 21 21 21 38 Greatest Overweight (x) . | . . . . . . . . . Average Overweight (x) . | . . . . . . . . . Largest Inventory Capacity 2 | . . . 2 2 2 2 2 2 Average Capacity 1 | . . . 1 2 2 2 2 1 Most Carried 2 | . . . 1 1 1 2 2 2 Average Carried 1 | . . . . 1 1 1 2 1 Final Capacity 2 | . . . 2 2 2 2 2 1 Final Carried 2 | . . . 1 1 1 2 2 . Class Distribution -------------------- 82% | Thief 16% | Cogmind Dominant Class ---------------- Cogmind | -10/Materials Cogmind | -10/Mines Thief | -10/Exiles Thief | -9/Mines Thief | -8/Materials Thief | -8/Storage Thief | -8/Recycling Thief | -8/Scraptown Resources | -11 -10 -10 -10 -9 -8 -8 -8 -8 ----------- Run | Yrd Mat Min Exi Min Mat Sto Rec Scr Matter Collected . | . . . . . . . . . Remotely . | . . . . . . . . . Salvage Created 957 | . . . . 348 537 72 . . Parts 45 | . . . . 8 34 3 . . Haulers Intercepted . | . . . . . . . . . Recyclers Shooed . | . . . . . . . . . Parts Field Recycled . | . . . . . . . . . Retrieved Matter . | . . . . . . . . . Parts Self-Destructed . | . . . . . . . . . Prevented . | . . . . . . . . . Kills | -11 -10 -10 -10 -9 -8 -8 -8 -8 ------- Run | Yrd Mat Min Exi Min Mat Sto Rec Scr Combat Hostiles Destroyed 27 | . . . . 14 11 1 . 1 Guns 26 | . . . . 13 11 1 . 1 Classes Destroyed 9 | . . . . 3 5 . . 1 Worker 1 | . . . . . 1 . . . Operator 1 | . . . . . 1 . . . Watcher 2 | . . . . . 2 . . . Swarmer 7 | . . . . . 7 . . . Grunt 7 | . . . . 3 3 1 . . Sentry 1 | . . . . . 1 . . . Demolisher 2 | . . . . 2 . . . . Explorer 1 | . . . . . . . . 1 Assembled 9 | . . . . 9 . . . . Best Kill Streak 7 | . . . . 7 6 1 . 1 Combat Bots Only 7 | . . . . 7 5 1 . 1 Max Kills in Single Turn 2 | . . . . 1 2 1 . 1 Gunslinging . | . . . . . . . . . Exploded . | . . . . . . . . . Melee . | . . . . . . . . . Uniques/NPCs Destroyed . | . . . . . . . . . Combat | -11 -10 -10 -10 -9 -8 -8 -8 -8 -------- Run | Yrd Mat Min Exi Min Mat Sto Rec Scr Hostile Shots Fired 137 | . . 11 . 18 18 49 24 17 Missed 54 | . . 8 . 7 6 17 9 7 Damage Taken 1395 | . . 39 . 177 137 500 218 324 Core 596 | . . 39 . 42 15 224 132 144 Absorbed by Shields . | . . . . . . . . . Ignored by Resistances 16 | . . . . . . 16 . . Core Remaining (%) 83 | 100 . . . 67 . . . . Volleys Fired 7 | . . . . . . . . 7 Largest 1 | . . . . . . . . 1 Hottest 80 | . . . . . . . . 80 Shots Fired 72 | . . . . 35 24 6 . 7 Gun 72 | . . . . 35 24 6 . 7 Cannon . | . . . . . . . . . Launcher . | . . . . . . . . . Special . | . . . . . . . . . Kinetic . | . . . . . . . . . Thermal 7 | . . . . . . . . 7 Explosive . | . . . . . . . . . Electromagnetic 65 | . . . . 35 24 6 . . Robot Hit Streak 11 | . . . . 8 11 9 . 5 Robot Miss Streak 5 | . . . . 3 3 3 . 5 Penetration Max . | . . . . . . . . . Secondary Targets . | . . . . . . . . . Autonomous 65 | . . . . 35 24 6 . . Shots Hit Robots 66 | . . . . 33 23 5 . 5 Core Hits 49 | . . . . 25 19 3 . 2 Critical Kills . | . . . . . . . . . Critical Parts Destroyed . | . . . . . . . . . Critical Strikes 12 | . . . . 8 3 . . 1 Burn 1 | . . . . . . . . 1 Corrupt 11 | . . . . 8 3 . . . Melee Attacks . | . . . . . . . . . Impact . | . . . . . . . . . Slashing . | . . . . . . . . . Piercing . | . . . . . . . . . Sneak Attacks . | . . . . . . . . . Combat Hostiles . | . . . . . . . . . Follow-up Attacks . | . . . . . . . . . Damage Inflicted 1611 | . . . . 703 617 186 . 105 Guns 1577 | . . . . 703 617 153 . 104 Cannons . | . . . . . . . . . Explosions . | . . . . . . . . . Melee . | . . . . . . . . . Ramming 34 | . . . . . . 33 . 1 Kinetic . | . . . . . . . . . Thermal 104 | . . . . . . . . 104 Explosive . | . . . . . . . . . Electromagnetic 1473 | . . . . 703 617 153 . . Impact . | . . . . . . . . . Slashing . | . . . . . . . . . Piercing . | . . . . . . . . . Highest Corruption . | . . . . . . . . . Average Corruption . | . . . . . . . . . Corruption Purged . | . . . . . . . . . Corruption Blocked . | . . . . . . . . . Overload Shots . | . . . . . . . . . Overflow Damage . | . . . . . . . . . Projectiles . | . . . . . . . . . Explosions . | . . . . . . . . . Melee . | . . . . . . . . . Knockbacks . | . . . . . . . . . Impact . | . . . . . . . . . Kinetic . | . . . . . . . . . Secondary . | . . . . . . . . . Self-Inflicted Damage 14 | . . . . . . 14 . . Shots . | . . . . . . . . . Rammed 17 | . . . . . . 16 . 1 Targets Rammed 17 | . . . . . . 16 . 1 Kicked . | . . . . . . . . . Crushed . | . . . . . . . . . Highest Temperature 200 | . . . . 16 . 24 . 200 Average Temperature 84 | . . . . 6 . 7 . 176 Received Heat Transfer 440 | . . 21 . 62 36 207 54 60 Siege Activations . | . . . . . . . . . Robots Corrupted 1 | . . . . 1 . . . . Combat Hostiles 1 | . . . . 1 . . . . Parts Fried 5 | . . . . 4 1 . . . Impact Corruptions . | . . . . . . . . . Robots Melted . | . . . . . . . . . Combat Hostiles . | . . . . . . . . . Parts Melted . | . . . . . . . . . Heat Transferred 350 | . . . . . . . . 350 Parts Sabotaged . | . . . . . . . . . Parts Stolen . | . . . . . . . . . Parts Stripped . | . . . . . . . . . Power Chain Reactions . | . . . . . . . . . Alert | -11 -10 -10 -10 -9 -8 -8 -8 -8 ------- Run | Yrd Mat Min Exi Min Mat Sto Rec Scr Peak Influence 395 | . . 131 . 120 395 251 97 . Initial 166 | . . . . . 46 166 97 . Average 90 | . . 67 . 83 160 192 39 . Maximum Alert Level 1 | . . . . . 1 1 . . Low Security (%) 87 | 100 100 100 . 100 68 50 100 . Level 1 12 | . . . . . 31 49 . . Level 2 . | . . . . . . . . . Level 3 . | . . . . . . . . . Level 4 . | . . . . . . . . . Level 5 . | . . . . . . . . . High Security . | . . . . . . . . . Max Security . | . . . . . . . . . Squads Dispatched 2 | . . . . . 1 1 . . Investigation . | . . . . . . . . . Extermination . | . . . . . . . . . Reinforcement 2 | . . . . . 1 1 . . Assault . | . . . . . . . . . Garrison . | . . . . . . . . . Intercept . | . . . . . . . . . Searches Triggered . | . . . . . . . . . Construction Impeded . | . . . . . . . . . Haulers Reinforced . | . . . . . . . . . Active Scanning Responses . | . . . . . . . . . Cargo Convoy Interrupts . | . . . . . . . . . Stealth | -11 -10 -10 -10 -9 -8 -8 -8 -8 --------- Run | Yrd Mat Min Exi Min Mat Sto Rec Scr Distress Signals 3 | . . 1 . . 1 1 . . Communications Jammed . | . . . . . . . . . Distress Signals . | . . . . . . . . . Times Spotted 75 | . . 7 . 15 16 15 5 17 Peak Tracking Total 7 | . . 3 . 4 5 5 2 7 Tactical Retreats 14 | . . 2 . 2 1 6 3 . Traps | -11 -10 -10 -10 -9 -8 -8 -8 -8 ------- Run | Yrd Mat Min Exi Min Mat Sto Rec Scr Traps Triggered 1 | . . . . . . 1 . . Indirectly . | . . . . . . . . . Trap Hack Attempts . | . . . . . . . . . Triggered . | . . . . . . . . . Disarmed . | . . . . . . . . . Reprogrammed . | . . . . . . . . . Reused . | . . . . . . . . . Traps Extracted . | . . . . . . . . . Installed . | . . . . . . . . . Triggered . | . . . . . . . . . Machines | -11 -10 -10 -10 -9 -8 -8 -8 -8 ---------- Run | Yrd Mat Min Exi Min Mat Sto Rec Scr Machines Disabled 2 | . . . . . 1 . . 1 Max in Single Turn 1 | . . . . . 1 . . 1 Machines Repaired . | . . . . . . . . . Machines Dismantled . | . . . . . . . . . Machines Sabotaged . | . . . . . . . . . Overloaded Fab Kills . | . . . . . . . . . Hacking | -11 -10 -10 -10 -9 -8 -8 -8 -8 --------- Run | Yrd Mat Min Exi Min Mat Sto Rec Scr Machines Accessed 4 | . . . 1 . 1 1 1 . Terminals 3 | . . . . . 1 1 1 . Fabricators . | . . . . . . . . . Repair Stations . | . . . . . . . . . Recycling Units . | . . . . . . . . . Scanalyzers . | . . . . . . . . . Garrison Access . | . . . . . . . . . Total Hacks 11 | . . . 2 . 1 1 7 . Successful 10 | . . . 2 . 1 1 6 . Failed 1 | . . . . . . . 1 . Catastrophic . | . . . . . . . . . Database Lockouts . | . . . . . . . . . Manual 4 | . . . . . 1 2 1 . Terminals 9 | . . . . . 1 1 7 . Fabricators . | . . . . . . . . . Repair Stations . | . . . . . . . . . Recycling Units . | . . . . . . . . . Scanalyzers . | . . . . . . . . . Garrison Access . | . . . . . . . . . Terminal Hacks 10 | . . . 2 . 1 1 6 . Record 2 | . . . 2 . . . . . Branch Access Points 2 | . . . . . 1 1 . . Alert Level 1 | . . . . . . . 1 . Unreport Threat 1 | . . . . . . . 1 . Recall Assault 1 | . . . . . . . 1 . Hauler Manifests 1 | . . . . . . . 1 . Registered Components 1 | . . . . . . . 1 . Zone Layout 1 | . . . . . . . 1 . Fabricator Hacks . | . . . . . . . . . Repair Station Hacks . | . . . . . . . . . Recycling Unit Hacks . | . . . . . . . . . Scanalyzer . | . . . . . . . . . Garrison Access Hacks . | . . . . . . . . . Unauthorized Hacks . | . . . . . . . . . Terminals . | . . . . . . . . . Fabricators . | . . . . . . . . . Repair Stations . | . . . . . . . . . Recycling Units . | . . . . . . . . . Scanalyzers . | . . . . . . . . . Garrison Access . | . . . . . . . . . Data Cores Recovered . | . . . . . . . . . Used . | . . . . . . . . . Hacking Detections . | . . . . . . . . . Full Trace Events . | . . . . . . . . . Feedback Events . | . . . . . . . . . Feedback Blocked . | . . . . . . . . . Robot Schematics Acquired . | . . . . . . . . . Robots Built . | . . . . . . . . . Authchips . | . . . . . . . . . Time . | . . . . . . . . . Total Robot Build Rating . | . . . . . . . . . Part Schematics Acquired . | . . . . . . . . . Parts Built . | . . . . . . . . . Authchips . | . . . . . . . . . Time . | . . . . . . . . . Total Part Build Rating . | . . . . . . . . . Parts Repaired . | . . . . . . . . . Time . | . . . . . . . . . Parts Recycled . | . . . . . . . . . Recycled Matter . | . . . . . . . . . Retrieved Matter . | . . . . . . . . . Retrieved Components . | . . . . . . . . . Parts Scanalyzed . | . . . . . . . . . Part Schematics Acquired . | . . . . . . . . . Parts Damaged . | . . . . . . . . . Bothacking | -11 -10 -10 -10 -9 -8 -8 -8 -8 ------------ Run | Yrd Mat Min Exi Min Mat Sto Rec Scr Used RIF Installer . | . . . . . . . . . Robots Hacked . | . . . . . . . . . Non-combat . | . . . . . . . . . Combat . | . . . . . . . . . Robot Hacks Applied . | . . . . . . . . . Relay Couplers Released . | . . . . . . . . . Fabnet Peak Effective % . | . . . . . . . . . Robots Rewired . | . . . . . . . . . Allies Hacked . | . . . . . . . . . Hacks Repelled . | . . . . . . . . . Allies | -11 -10 -10 -10 -9 -8 -8 -8 -8 -------- Run | Yrd Mat Min Exi Min Mat Sto Rec Scr Total Allies 3 | . . 3 . . . . . . Largest Group 3 | . . 3 . . . . . . Highest-Rated Group 40 | . . 40 . . . . . . Highest-Rated Ally 16 | . . 16 . . . . . . Total Orders . | . . . . . . . . . Ally Attacks 48 | . . 23 . . . . . 25 Total Damage 1432 | . . 175 . . . . . 1257 Kills 17 | . . 4 . . . . . 13 Allies Corrupted . | . . . . . . . . . Allies Melted . | . . . . . . . . . Turrets Deployed 1 | . . . . . . . . 1 Intel | -11 -10 -10 -10 -9 -8 -8 -8 -8 ------- Run | Yrd Mat Min Exi Min Mat Sto Rec Scr Robot Analysis Total 1 | . . . . . . . . 1 Derelict Logs Recovered 2 | . . 1 . 1 . . . . Drone Launches . | . . . . . . . . . Drone Recoveries . | . . . . . . . . . Exploration | -11 -10 -10 -10 -9 -8 -8 -8 -8 ------------- Run | Yrd Mat Min Exi Min Mat Sto Rec Scr Turns Passed 2159 | 10 16 260 97 207 344 197 686 342 Spaces Moved 2435 | 20 32 348 156 174 342 193 838 332 Core 505 | 20 32 348 92 . . . . 13 Treads . | . . . . . . . . . Legs 6 | . . . . . . . . 6 Wheels . | . . . . . . . . . Hover 1924 | . . . 64 174 342 193 838 313 Flight . | . . . . . . . . . Fastest Speed 50 | 50 50 50 50 80 80 80 80 50 Average Speed 73 | 50 50 50 62 80 80 80 80 79 Slowest Speed 100 | 50 50 50 80 80 80 80 80 100 Overloaded Moves . | . . . . . . . . . Propulsion Burnouts . | . . . . . . . . . Robots Hopped . | . . . . . . . . . Cave-ins Triggered . | . . . . . . . . . Exploration Rate (%) 39 | 3 13 62 53 37 26 35 98 27 Regions Visited 8 Branch Regions 6 Pre-discovered Areas 1 | . . . 1 . . . . . Known Exits Taken 2 | . . . . . 1 1 . . Unknown Exits Taken 6 | 1 1 1 1 1 . . 1 . Scrap Searched 3 | . . 3 . . . . . . Spaces Dug . | . . . . . . . . . Terrain Destroyed . | . . . . . . . . . Melee . | . . . . . . . . . Projectile . | . . . . . . . . . AOE . | . . . . . . . . . Terrain Rammed . | . . . . . . . . . Walls Destroyed . | . . . . . . . . . Machines Disabled . | . . . . . . . . . Actions | -11 -10 -10 -10 -9 -8 -8 -8 -8 --------- Run | Yrd Mat Min Exi Min Mat Sto Rec Scr Total 2787 | 19 31 433 155 241 412 235 853 408 Wait 334 | . . 86 . 68 71 26 16 67 Move 2427 | 19 31 347 155 173 341 192 837 332 Hop . | . . . . . . . . . Pick Up 1 | . . . . . . 1 . . Fast Attach . | . . . . . . . . . Attach . | . . . . . . . . . Detach . | . . . . . . . . . Swap . | . . . . . . . . . Drop 1 | . . . . . . . . 1 Fire 7 | . . . . . . . . 7 Melee . | . . . . . . . . . Ram 17 | . . . . . . 16 . 1 Kick . | . . . . . . . . . Crush . | . . . . . . . . . Escape Stasis . | . . . . . . . . . Rewire . | . . . . . . . . . Trap . | . . . . . . . . . Miscellaneous . | . . . . . . . . . Route ------- -11/Scrapyard -10/Materials -10/Mines (discovered 2 exits: [*Mat] / *Exi) -10/Exiles (discovered 2 exits: [*Min x2]) -9/Mines (discovered 2 exits: *Mat x2) -8/Materials (discovered 3 exits: Fac / *Sto x2) -8/Storage -8/Recycling (discovered 2 exits: [*Fac] / [*Scr]) -8/Scraptown History --------- Turn | Location | Event 3 | -11/Scrapyard | Discovered new exit (range 15) 11 | -11/Scrapyard | Entered Materials 21 | -10/Materials | Discovered new exit (range 11) 27 | -10/Materials | Entered Mines 41 | -10/Mines | Assisted by bots powering up and referring to "LRC-V3" 156 | -10/Mines | A weapon hastily lodged in a ceiling crevice suddenly fell to the ground 167 | -10/Mines | Discovered new exit (range 12) 237 | -10/Mines | Learned location of 1 exit from Materials 285 | -10/Mines | Deemed a non-threat by the Exiles lab entrance 285 | -10/Mines | Discovered new exit (range 5) 287 | -10/Mines | Entered Exiles 296 | -10/Exiles | Discovered new exit (range 15) 301 | -10/Exiles | Met 8R-AWN 308 | -10/Exiles | Met EX-HEX 327 | -10/Exiles | Met EX-DEC 334 | -10/Exiles | Took control of EX-DEC (ally) 352 | -10/Exiles | Learned location of Zion (-6) 375 | -10/Exiles | Discovered new exit (range 12) 384 | -10/Exiles | Left Exiles lab with Deploy-a-Sentry 384 | -10/Exiles | Entered Mines 414 | -9/Mines | Assembled infested the area 415 | -9/Mines | Learned Materials trap positions 427 | -9/Mines | Discovered new exit (range 10) 529 | -9/Mines | Found a damaged Exp. Sensor Array with a note attached 562 | -9/Mines | Destroyed 7 combat bots 576 | -9/Mines | Discovered new exit (range 10) 591 | -9/Mines | Entered Materials 592 | -8/Materials | Identified exit to Factory 593 | -8/Materials | Loaded intel: 29 trap records 616 | -8/Materials | Identified exit to Storage 935 | -8/Materials | Entered Storage 994 | -8/Storage | Identified exit to Recycling 1015 | -8/Storage | Lost 8 parts (7u1w) 1130 | -8/Storage | Used back door to open Recycling access 1132 | -8/Storage | Entered Recycling 1359 | -8/Recycling | Discovered new exit (range 7) 1658 | -8/Recycling | Core integrity fell below 50% 1797 | -8/Recycling | Scanned before Scraplab entrance 1809 | -8/Recycling | Entered Scraplab 1817 | -8/Recycling | Discovered new exit (range 3) 1818 | -8/Recycling | Entered Scraptown 1958 | -8/Scraptown | DAS Turret deployed 1965 | -8/Scraptown | Attacked by Scraptown defenders 2113 | -8/Scraptown | Core integrity fell below 20% 2160 | -8/Scraptown | Self-destructed Last Messages --------------- 02142_ Destroyed VSS Leg. 02142_ E7-ZB4(x) knocked back. 02143_ Machine disabled. 02144_ Took control of TB-BD5(j). 02144_ Extracted analysis data for Scrapper. 02144_ Machine disabled. 02146_ E7-ZB4(x) knocked back. 02147_ E7-ZB4(x) suffers critical hit (Burn). 02148_ DAS Turret destroyed. 02150_ Destroyed VSS Leg. 02151_ Triborg activates siege mode. 02151_ Penetrated by Siege Slug. 02151_ Siege Slug penetrates Machine. 02151_ Machine disabled. 02151_ Destroyed Mak. Spear. 02153_ Penetrated by Siege Slug. 02153_ Knocked back. 02153_ E7-ZB4(x) destroyed. 02156_ Triborg exits siege mode. 02156_ Acquired 17 Protomatter. Map ----- +----------------------------------------------------+ | | | | | | | | | | | | | | | | | | | | | | | ?????????????#?????????????????????????? | | ????????????#"####?????????????????????? | | ???????????#" """""#???????????????????? | | ??????????##" "#???????????????????? | | ?????????? """ "#????#######????????? | | ???????????#" """ "#????"""""""#???????? | | ???????????#" """ "#???#"" ""#???????? | | ???????????#" "#???#"" ""#???????? | | ?????????###" " """###?#""" ""#???????? | | ??### #### #?#"" ""#???????? | | ??#"" """ ###"""="""######## | | ??#" """ ![%!!!!!=! | | ??#"" """ % % % ==!=[=%*!% | | ??#""" r % %[%=[!%![* | | ??#""" " rj ###### ##*######## | | ??#"" " r ###### ######?????# | | ??#""""""" % [% % #""""" """""#####?# | | ??######## =%* #" " " #?# | | ?????????### #""" ""#" " " "### #?# | | ???????????# #""" "#" " " "#?" """ | | ???????????# #""" "#""""" """""#? """ | | ???????????# %#"" "###### ######?? " | | ???????????# #" "#""""" """""#??? | | ???????????# #""" ""#" " " "#???" " | | ???????????# #### ###" " " "#???? " | | ???????????# #??# " " "#?????" | | ??????????## #??#####""""" """""#?????# | | ??????????#" ##?????###### ######?????# | | ??????????# ############ ############ | | ??????????# [ | | ??????????# %! | | ??????????# %! ######################### | | ??????????## %##??????????????????????# | | ???????????# #??????????????????????### | | ??????????"" "??????????????????????# | | ?????????""" ??????????????????????# | | ?????????""" ?????????????????????# | | ????????? " " ?????????????????????# | | ?????????? " ?????????????????????# | +----------------------------------------------------+ Best States ------------- Heat Dissipation 25 Energy Generation 23 Energy Capacity 235 Sight Range 16 Terrain Scan Density 10 Resistance: EM 90 Evasion (%) 50 Launcher Accuracy 40 Target Analysis 6 Core Analysis 8 Armor Integrity Analysis 40 Offensive Hacking 70 Defensive Hacking 56 Item Schematics ----------------- None Robot Schematics ------------------ None Fabricated ------------ Nothing Alien Tech Used ----------------- None Achievements -------------- None Challenges ------------ None Polymind | -11 -10 -10 -10 -9 -8 -8 -8 -8 ---------- Run | Yrd Mat Min Exi Min Mat Sto Rec Scr Hosts 2 | . . . 1 . . . . 1 Combat Hostiles 1 | . . . . . . . . 1 Allies 1 | . . . 1 . . . . . Unique Host Classes 2 | . . . 1 . . . . 1 Average Host Suspicion 64 | . . . . 45 91 86 85 . Unsuspicious Activity 338 | . . . 16 220 . . . 102 Returns to Shadow 2 | . . . . 2 . . . . Fuzzy Dispatches . | . . . . . . . . . Protomatter Created 302 | . . 13 . 63 12 . . 214 Used 78 | . . . 33 . . . . 45 Decayed 47 | . . . . 3 5 . . 39 Highest Spend 45 | . . . 33 . . . . 45 Top 5 Hosts by Kills: EX-DEC (-10/Exiles: 26) TB-BD5(j) (-8/Scraptown: 1) Game ------ Seed LinearAlphaWartreads Manual? 0 Play Time 00:15:10 Cumulative 246.2 hours Start 2024.09.01 @ 16:47:35 End 2024.09.01 @ 17:00:35 Sessions 1 Manual Loads 0 Difficulty Rogue Special Mode Winter2022/Polymind Game No. 259 Rogue 223 Adventurer 36 Explorer 0 Win Type - Total 10 Types 3/0/7/0/0/0/0/0/0 Lore% 62 Gallery% 82 Achievement% 72 Wizard Run 0 Options --------- Layout 0 ASCII 0 Keyboard 0 Movement Mouse Keybinds 0 Fullscreen 1 Font 18/SmallcapsGlow Map View 76x50 Zoom Use 0% Tactical HUD 1 Map Filters NONE Filters NONE Steam 1 RUN: 94d87658-bbce-47b9-bd23-48778ef4782f